bitfinex-derivatives/quotes_ETHF0:USTF0_20250923
["timestamp","ask_amount","ask_price","bid_price","bid_amount"]
[1758667869711,1.9644299,4184.0,4183.9,3.7279]
[1758667870315,1.9644299,4184.0,4183.8,0.43005]
[1758667870316,0.9292999,4184.0,4183.6,0.3123]
[1758667870610,0.4239,4183.7,4183.6,0.84517]
[1758667870811,0.9900999,4183.7,4183.6,0.84517]
[1758667871012,0.9900999,4183.7,4183.6,1.15747]
[1758667871414,1.2310999,4183.7,4183.6,1.15747]
[1758667872303,1.23174086,4183.7,4183.6,1.15747]
[1758667874310,0.6649,4183.7,4183.6,1.15747]
[1758667884627,1.09496,4183.7,4183.6,1.15747]
[1758667884815,0.6649,4183.7,4183.6,1.15747]
[1758667885523,0.9715,4183.7,4183.6,1.15747]
[1758667886030,1.40156,4183.7,4183.6,1.15747]
[1758667888231,1.40156,4183.7,4183.6,0.7274]
[1758667888425,0.65258,4183.5,4183.4,3.5151]
[1758667888630,1.16768,4183.5,4183.4,3.7172]
[1758667888926,1.73456425,4183.5,4183.4,0.5094]
[1758667889731,6.76422425,4183.5,4182.6,0.3073]
[1758667890035,0.7376,4182.7,4182.6,0.7196]
[1758667890328,1.16777,4182.7,4182.6,0.7196]
[1758667890631,0.7376,4182.7,4182.6,1.14978]
[1758667891230,1.16777,4182.7,4182.6,1.14978]
[1758667893932,1.16777,4182.7,4182.6,0.7196]
[1758667894326,1.16777,4182.7,4182.6,1.14978]
[1758667895032,1.16777,4182.7,4182.6,0.7196]
[1758667899437,1.30400201,4182.7,4182.0,0.123]
[1758667899633,0.7376,4182.2,4182.1,0.5094]
[1758667899935,1.16783,4182.2,4182.1,0.5094]
[1758667900538,1.73398521,4182.2,4182.1,0.3073]
[1758667901236,1.16785,4181.9,4181.8,3.4099]
[1758667901644,1.16785,4181.9,4181.8,3.7172]
[1758667903442,1.16785,4181.9,4181.8,0.5094]
[1758667904343,0.7376,4181.9,4181.8,0.7196]
[1758667905243,0.7376,4181.9,4181.8,1.14986]
[1758667905645,0.2225,4181.9,4181.8,1.14986]
[1758667911253,3.63801,4182.3,4182.2,0.7196]
[1758667911438,0.67121,4182.3,4182.2,0.7196]
[1758667911645,3.2078,4182.8,4182.7,0.4123]
[1758667911844,3.2078,4182.8,4182.7,0.7196]
[1758667912044,3.2078,4183.3,4183.1,0.43012]
[1758667912352,3.4303,4183.3,4183.2,0.7196]
[1758667912650,4.2377758,4183.3,4183.2,1.14971]
[1758667912949,4.0152758,4183.3,4183.2,1.14971]
[1758667913151,3.4488,4183.3,4183.2,1.14971]
[1758667913547,0.241,4183.3,4183.2,1.14971]
[1758667915252,3.2078,4183.8,4183.6,0.85687]
[1758667915555,1.0174745,4183.7,4183.6,0.4268]
[1758667915850,1.5636745,4183.7,4183.6,0.7322]
[1758667918949,1.5636745,4183.7,4183.6,1.16227]
[1758667920250,0.7764745,4183.7,4183.6,1.16227]
[1758667920454,0.8077745,4183.7,4183.6,1.16227]
[1758667921049,3.2078,4183.8,4183.7,0.85686]
[1758667921245,4.01567832,4183.8,4183.7,1.16226]
[1758667921555,4.63475,4183.8,4183.7,0.7322]
[1758667921753,4.2047,4183.8,4183.7,1.16226]
[1758667921955,3.9637,4183.8,4183.7,1.16226]
[1758667922154,4.2047,4183.8,4183.7,1.16226]
[1758667923149,3.8772,4183.8,4183.7,1.16226]
[1758667923349,3.8772,4183.8,4183.5,0.1309]
[1758667923350,3.2078,4184.3,4184.2,0.2063]
[1758667923656,3.4488,4184.3,4184.2,1.16221]
[1758667924352,3.6585,4184.3,4184.2,1.16221]
[1758667925245,4.6347,4184.3,4184.2,0.3054]
[1758667926452,4.2047,4184.3,4184.2,1.16221]
[1758667926757,4.6347,4184.3,4184.2,1.16221]
[1758667928160,4.6347,4184.3,4184.2,0.7322]
[1758667928656,4.6347,4184.3,4184.2,1.16221]
[1758667929459,4.2047,4184.3,4184.2,1.16221]
[1758667930151,4.6347,4184.3,4184.2,0.7322]
[1758667930361,4.6347,4184.3,4184.2,1.16221]
[1758667931862,4.2047,4184.3,4184.2,1.16221]
[1758667933363,4.6347,4184.3,4184.2,1.16221]
[1758667933559,4.6347,4184.3,4184.2,0.7322]
[1758667933758,4.6347,4184.3,4183.9,0.43004]
[1758667933759,3.7763,4184.3,4183.9,0.43004]
[1758667933959,0.7114,4184.0,4183.9,0.97224]
[1758667934159,0.9524,4184.0,4183.9,0.97224]
[1758667934364,0.7114,4183.8,4183.7,0.3252]
[1758667934553,0.7114,4183.8,4183.7,0.75526]
[1758667934760,0.7114,4183.8,4183.7,0.97226]
[1758667935267,0.7114,4183.8,4183.7,1.18976]
[1758667936065,0.93382,4184.1,4184.0,0.99203]
[1758667936271,1.17482,4184.1,4184.0,1.31723]
[1758667936470,1.38242,4184.1,4184.0,1.31723]
[1758667937269,1.14142,4184.1,4184.0,1.31723]
[1758667937468,0.9524,4184.1,4184.0,1.31723]
[1758667937658,3.2078,4184.3,4184.2,0.43001]
[1758667937877,3.2078,4184.3,4184.2,1.18971]
[1758667938787,3.4089,4184.9,4184.8,1.18965]
[1758667938973,4.21605941,4184.9,4184.8,1.18965]
[1758667939583,3.77395941,4184.9,4184.8,1.18965]
[1758667939886,0.2011,4185.2,4185.1,0.7597]
[1758667940082,0.6497,4185.2,4185.1,0.7597]
[1758667940282,1.51869606,4185.2,4185.1,0.7597]
[1758667940884,1.51869606,4185.2,4185.1,1.18962]
[1758667941776,1.21599606,4185.2,4185.1,1.18962]
[1758667942176,1.51869606,4185.2,4185.1,1.18962]
[1758667942987,1.94860606,4185.2,4185.1,0.5422]
[1758667944874,1.51869606,4185.2,4185.1,0.5422]
[1758667945078,1.51869606,4185.2,4185.1,0.97212]
[1758667945486,1.94860606,4185.2,4185.1,0.5422]
[1758667945876,0.97499606,4185.2,4185.1,1.18962]
[1758667946078,0.80729606,4185.2,4185.1,1.18962]
[1758667946281,0.4444,4185.2,4185.1,1.18962]
[1758667949388,0.9752,4185.2,4185.1,1.18962]
[1758667949588,0.6646,4185.2,4185.1,1.18962]
[1758667950880,0.9752,4185.2,4185.1,1.18962]
[1758667951587,0.6646,4185.2,4185.1,1.18962]
[1758667952190,1.23166432,4185.2,4185.1,1.18962]
[1758667956091,0.42993,4185.0,4184.7,0.3139]
[1758667956288,0.7342,4184.8,4184.7,0.94895]
[1758667956595,0.4236,4184.8,4184.7,1.16535]
[1758667957191,0.514,4185.1,4185.0,1.29223]
[1758667957390,0.77068624,4185.1,4185.0,1.29223]
[1758667957590,1.20060624,4185.1,4185.0,1.29223]
[1758667957780,1.73140624,4185.1,4185.0,1.29223]
[1758667957978,1.42080624,4185.1,4185.0,1.29223]
[1758667958684,0.99088624,4185.1,4185.0,1.29223]
[1758667959086,1.42080624,4185.1,4185.0,1.29223]
[1758667959681,0.77068624,4185.1,4185.0,1.29223]
[1758667959991,0.56728624,4185.1,4185.0,1.29223]
[1758667961295,3.2078,4185.5,4185.4,1.16529]
[1758667961591,4.20530506,4185.5,4185.4,1.16529]
[1758667961794,3.77542506,4185.5,4185.4,1.16529]
[1758667962188,3.97882506,4185.5,4185.4,1.16529]
[1758667962782,4.40870506,4185.5,4185.4,1.16529]
[1758667963195,4.93950506,4185.5,4185.4,0.3139]
[1758667963393,0.4236,4185.2,4185.1,1.16532]
[1758667963595,0.99122506,4185.2,4185.1,1.16532]
[1758667963898,1.30182506,4185.2,4185.1,1.16532]
[1758667966704,1.73173506,4185.2,4185.1,1.16532]
[1758667966998,1.73173506,4185.2,4185.1,0.94892]
[1758667968195,1.73173506,4185.2,4185.1,1.16532]
[1758667970401,1.30182506,4185.2,4185.1,1.16532]
[1758667971095,0.77102506,4185.2,4185.1,1.16532]
[1758667971288,0.56762506,4185.2,4185.1,1.16532]
[1758667972301,0.4444,4185.4,4185.3,1.1653]
[1758667972501,1.01277994,4185.4,4185.3,1.1653]
[1758667973202,1.23297994,4185.4,4185.3,1.1653]
[1758667973401,1.54297994,4185.4,4185.3,1.1653]
[1758667974292,1.01277994,4185.4,4185.3,1.1653]
[1758667976298,0.56837994,4185.4,4185.3,1.1653]
[1758667978207,0.78427994,4185.4,4185.3,1.1653]
[1758667978417,1.30617994,4185.4,4185.3,1.1653]
[1758667979103,1.73606994,4185.4,4185.3,1.1653]
[1758667980813,1.16771,4185.2,4185.1,0.74261]
[1758667981009,1.73608994,4185.2,4185.1,0.74261]
[1758667981408,0.7378,4184.9,4184.8,0.65265]
[1758667981606,1.30617994,4184.9,4184.8,0.5354]
[1758667981915,1.73611994,4184.9,4184.8,0.5354]
[1758667982313,0.64587,4184.6,4184.3,3.6378]
[1758667982613,1.40877,4184.6,4184.5,0.3127]
[1758667982911,1.97742179,4184.6,4184.5,0.3127]
[1758667983114,1.97742179,4184.6,4184.5,0.5354]
[1758667983903,1.97742179,4184.6,4184.5,0.96538]
[1758667984304,1.97742179,4184.6,4184.5,0.5354]
[1758667986317,0.31,4184.3,4184.2,0.3127]
[1758667986516,1.30570235,4184.3,4184.2,0.74271]
[1758667986819,1.73570235,4184.3,4184.2,0.74271]
[1758667987216,1.16782,4184.1,4184.0,0.74273]
[1758667987402,0.9788,4184.1,4184.0,0.96543]
[1758667987605,1.16784,4183.9,4183.8,0.5354]
[1758667987912,1.16784,4183.9,4183.8,0.96545]
[1758667988611,1.16784,4183.9,4183.8,1.18135]
[1758667989112,1.16784,4183.9,4183.8,0.3127]
[1758667989310,0.74005,4183.8,4183.7,3.5205]
[1758667989513,1.16785,4183.8,4183.7,3.5205]
[1758667990910,0.7378,4183.8,4183.7,4.17326]
[1758667991110,0.7378,4183.8,4183.7,4.38916]
[1758667991710,1.16785,4183.8,4183.7,4.38916]
[1758667991910,1.16785,4183.8,4183.7,3.9591]
[1758667992311,1.16785,4183.8,4183.7,4.38916]
[1758667992514,0.7378,4183.8,4183.7,4.38916]
[1758667992911,0.43003,4184.0,4183.8,0.43004]
[1758667993113,0.4444,4184.1,4184.0,0.8829]
[1758667993314,1.01133463,4184.1,4184.0,0.8829]
[1758667993511,1.44135463,4184.1,4184.0,0.8829]
[1758667993715,1.98005463,4184.1,4184.0,0.8829]
[1758667996617,1.98005463,4184.1,4184.0,0.5332]
[1758667997217,1.98005463,4184.1,4184.0,0.96323]
[1758667997412,1.01133463,4184.1,4184.0,1.31293]
[1758667997618,0.80793463,4184.1,4184.0,1.31293]
[1758667997922,1.98005463,4184.1,4184.0,1.31293]
[1758667998123,1.65045463,4184.1,4184.0,1.31293]
[1758667998321,1.08352,4184.1,4184.0,1.31293]
[1758667998914,0.6535,4184.1,4184.0,1.31293]
[1758667999215,0.4444,4184.1,4184.0,1.31293]
[1758667999416,0.241,4184.1,4184.0,1.31293]
[1758668003119,3.2078,4184.6,4184.5,1.31288]
[1758668004529,3.77452724,4184.6,4184.5,1.31288]
[1758668007626,4.49232724,4184.6,4184.5,0.8829]
[1758668007827,4.92229724,4184.6,4184.5,0.7535]
[1758668008222,4.49232724,4184.6,4184.5,0.7535]
[1758668008427,4.49232724,4184.6,4184.5,1.18348]
[1758668008628,4.92229724,4184.6,4184.5,0.7535]
[1758668008935,4.49232724,4184.6,4184.5,0.42998]
[1758668009725,4.49232724,4184.6,4184.5,0.75098]
[1758668010432,4.92229724,4184.6,4184.5,0.75098]
[1758668012538,5.16329724,4184.6,4184.5,0.75098]
[1758668012735,0.43,4184.4,4184.2,0.75101]
[1758668012937,1.52552724,4184.3,4184.2,0.75101]
[1758668013139,1.52552724,4184.3,4184.2,0.96121]
[1758668014132,1.95552724,4184.3,4184.2,0.96121]
[1758668014732,1.95552724,4184.3,4184.2,0.5312]
[1758668015039,0.7178,4184.0,4183.9,0.96124]
[1758668015234,1.28452724,4184.0,4183.9,0.96124]
[1758668015437,1.28452724,4184.0,4183.9,1.16704]
[1758668016739,0.98262724,4184.0,4183.9,1.16704]
[1758668019334,1.71455724,4184.0,4183.9,1.16704]
[1758668019647,1.71455724,4184.0,4183.9,0.321]
[1758668020035,1.71455724,4184.0,4183.9,0.5312]
[1758668026447,1.71455724,4184.0,4183.9,0.321]
[1758668026654,0.7178,4183.8,4183.7,4.37486]
[1758668026846,1.28452724,4183.8,4183.7,4.37486]
[1758668028455,1.71457724,4183.8,4183.7,4.37486]
[1758668028746,1.71457724,4183.8,4183.7,3.9448]
[1758668029349,1.71457724,4183.8,4183.7,0.737]
[1758668029548,0.7178,4183.5,4183.4,0.43009]
[1758668029752,1.95560724,4183.5,4183.4,0.321]
[1758668030957,1.95560724,4183.5,4183.4,0.75109]
[1758668031455,1.38888,4183.5,4183.4,0.75109]
[1758668031656,1.38888,4183.5,4183.4,0.96129]
[1758668032257,1.52660883,4183.5,4183.4,0.96129]
[1758668032459,1.52660883,4183.5,4183.4,1.16709]
[1758668032649,0.9588,4183.5,4183.4,1.16709]
[1758668032849,1.38888,4183.5,4183.4,1.16709]
[1758668033953,0.6569,4183.5,4183.4,1.16709]
[1758668034159,0.4436,4183.5,4183.4,1.16709]
[1758668034360,0.43006,4183.8,4183.7,0.43006]
[1758668034562,1.451599,4183.8,4183.7,1.18376]
[1758668035351,1.957999,4183.8,4183.7,1.18376]
[1758668037657,1.021539,4183.8,4183.7,1.18376]
[1758668042058,1.527939,4183.8,4183.7,1.18376]
[1758668042862,1.527939,4183.8,4183.6,0.76017]
[1758668042863,0.7192,4183.7,4183.6,0.76017]
[1758668043060,1.286939,4183.7,4183.6,0.96607]
[1758668043863,1.286939,4183.7,4183.6,1.18377]
[1758668050472,1.716999,4183.7,4183.6,1.18377]
[1758668050669,1.286939,4183.7,4183.6,1.18377]
[1758668051679,1.286939,4183.7,4183.6,0.96607]
[1758668051882,1.716999,4183.7,4183.6,0.76017]
[1758668052083,1.286939,4183.7,4183.6,0.76017]
[1758668052280,1.286939,4183.7,4183.6,0.96417]
[1758668052582,1.286939,4183.7,4183.6,1.18207]
[1758668055780,1.286939,4183.7,4183.6,0.96417]
[1758668058087,1.716999,4183.7,4183.6,0.96417]
[1758668058294,1.286939,4183.7,4183.6,0.76017]
[1758668058789,1.716999,4183.7,4183.6,0.76017]
[1758668059090,1.716999,4183.7,4182.6,2.15085]
[1758668059091,0.7626,4183.2,4183.1,0.3292]
[1758668059295,2.001449,4183.2,4183.1,0.3292]
[1758668059593,2.001449,4183.2,4183.1,0.5332]
[1758668060691,0.7626,4182.9,4182.8,0.204]
[1758668060990,1.571339,4182.9,4182.8,0.204]
[1758668061390,1.571339,4182.9,4182.8,0.5332]
[1758668061887,2.001489,4182.9,4182.8,0.96336]
[1758668062391,2.001489,4182.9,4182.8,0.5332]
[1758668062582,2.001489,4182.9,4182.8,0.75936]
[1758668062783,2.001489,4182.9,4182.8,0.3292]
[1758668062983,1.19278,4182.6,4182.5,0.3292]
[1758668063288,0.2071,4182.3,4182.2,3.85671]
[1758668063486,0.9896,4182.3,4182.2,3.85671]
[1758668063792,0.9896,4182.3,4182.2,4.06741]
[1758668063984,0.9896,4182.3,4182.2,4.37891]
[1758668066987,1.98691157,4182.3,4182.2,0.7409]
[1758668067185,1.98691157,4182.3,4182.2,0.5302]
[1758668070191,1.41981,4182.3,4182.2,0.5302]
[1758668070493,1.98631775,4182.3,4182.2,0.5302]
[1758668070992,0.43023,4182.1,4181.6,0.3115]
[1758668071196,0.7486,4181.7,4181.6,0.7409]
[1758668071494,0.7486,4181.7,4181.6,1.17118]
[1758668072596,1.17887,4181.7,4181.6,0.7409]
[1758668072792,1.41987,4181.7,4181.6,0.3115]
[1758668073696,1.41987,4181.7,4181.6,0.96048]
[1758668074499,1.41987,4181.7,4181.6,0.5302]
[1758668075899,1.41987,4181.7,4181.6,0.3115]
[1758668076199,1.17889,4181.5,4181.4,0.3115]
[1758668077394,1.17889,4181.5,4181.4,0.7418]
[1758668077999,0.7486,4181.5,4181.4,1.1712]
[1758668079199,0.2071,4182.1,4182.0,0.78243]
[1758668079508,1.01347289,4182.1,4182.0,1.30463]
[1758668079699,0.4481,4182.1,4182.0,1.30463]
[1758668080101,1.01353233,4182.1,4182.0,1.30463]
[1758668080311,0.2071,4182.1,4182.0,1.30463]
[1758668080497,5.10001779,4182.2,4182.1,1.17113]
[1758668080809,6.11355443,4182.2,4182.1,1.17113]
[1758668081197,6.54377443,4182.2,4182.1,1.17113]
[1758668082098,7.08527443,4182.2,4182.1,1.17113]
[1758668083208,6.65505443,4182.2,4182.1,1.17113]
[1758668083408,4.22133664,4182.2,4182.1,1.17113]
[1758668083599,3.4488,4182.2,4182.1,1.17113]
[1758668083908,3.6559,4182.2,4182.1,1.17113]
[1758668084406,3.4488,4182.2,4182.1,1.17113]
[1758668086006,0.241,4182.2,4182.1,1.17113]
[1758668086205,3.2078,4182.7,4182.6,0.43018]
[1758668086510,3.2078,4182.7,4182.6,1.17108]
[1758668086511,3.77472588,4182.7,4182.6,1.17108]
[1758668086711,4.01572588,4182.7,4182.6,1.17108]
[1758668088413,4.22282588,4182.7,4182.6,1.17108]
[1758668090614,4.01572588,4182.7,4182.6,1.17108]
[1758668091706,4.43462588,4182.7,4182.6,1.17108]
[1758668091906,4.76432588,4182.7,4182.6,1.17108]
[1758668092517,4.43462588,4182.7,4182.6,1.17108]
[1758668092710,4.01572588,4182.7,4182.6,1.17108]
[1758668093108,4.43462588,4182.7,4182.6,1.17108]
[1758668093312,4.76432588,4182.7,4182.6,1.17108]
[1758668094611,4.43462588,4182.7,4182.6,1.17108]
[1758668095114,4.43555447,4182.7,4182.6,1.17108]
[1758668096018,4.76715447,4182.7,4182.6,1.17108]
[1758668097219,4.22375447,4182.7,4182.6,1.17108]
[1758668097421,3.4488,4182.7,4182.6,1.17108]
[1758668098519,4.2134,4182.7,4182.6,1.17108]
[1758668099228,1.0056,4182.7,4182.6,1.17108]
[1758668100118,0.4611,4182.7,4182.6,1.17108]
[1758668100627,0.241,4182.7,4182.6,1.17108]
[1758668101923,0.4611,4182.7,4182.6,1.17108]
[1758668102124,1.0056,4182.7,4182.6,1.17108]
[1758668102519,1.0056,4182.7,4182.6,0.96038]
[1758668102721,1.0056,4182.7,4182.6,0.74168]
[1758668103226,1.0056,4182.7,4182.6,0.94558]
[1758668104329,1.0056,4182.7,4182.6,1.15478]
[1758668105228,0.241,4182.7,4182.6,1.15478]
[1758668105432,0.2201,4183.3,4183.2,1.15521]
[1758668105727,0.3316,4183.6,4183.5,1.28608]
[1758668105728,0.2201,4183.6,4183.5,1.28608]
[1758668105921,1.24143071,4183.6,4183.5,1.28608]
[1758668106122,1.57303071,4183.6,4183.5,1.28608]
[1758668106323,1.24143071,4183.6,4183.5,1.28608]
[1758668107329,2.00310071,4183.6,4183.5,0.7251]
[1758668107631,1.19468,4183.5,4183.4,0.74209]
[1758668107822,1.76211071,4183.5,4183.4,0.74209]
[1758668108022,1.33203071,4183.5,4183.4,0.94599]
[1758668108532,1.33203071,4183.5,4183.4,1.15519]
[1758668110627,1.00043071,4183.5,4183.4,1.15519]
[1758668110830,0.78753071,4183.5,4183.4,1.15519]
[1758668111829,3.4488,4183.8,4183.7,1.15516]
[1758668112130,4.0163444,4183.8,4183.7,1.15516]
[1758668112641,0.5675444,4183.8,4183.7,1.15516]
[1758668112825,3.9564,4184.4,4184.3,0.7359]
[1758668113029,5.19485501,4184.4,4184.3,1.1659]
[1758668114035,5.19485501,4184.4,4184.3,0.7359]
[1758668114437,5.19485501,4184.4,4184.3,1.1659]
[1758668114840,5.19485501,4184.4,4184.3,0.7359]
[1758668115836,0.7486,4183.9,4183.8,0.5281]
[1758668116426,0.7486,4183.9,4183.8,0.95815]
[1758668116427,1.17864,4183.9,4183.8,0.95815]
[1758668117740,1.17864,4183.9,4183.8,0.5281]
[1758668118138,1.17864,4183.9,4183.8,0.95815]
[1758668118942,0.7486,4183.9,4183.8,0.95815]
[1758668119142,0.7486,4183.9,4183.8,1.16595]
[1758668119343,0.4387,4183.9,4183.8,1.16595]
[1758668119544,0.4563,4184.0,4183.9,1.16594]
[1758668119738,3.4231,4184.4,4184.3,1.1659]
[1758668119935,4.95269022,4184.4,4184.3,0.7359]
[1758668120145,4.95269022,4184.4,4184.3,1.1659]
[1758668120445,4.52270022,4184.4,4184.3,1.1659]
[1758668120637,4.95269022,4184.4,4184.3,1.1659]
[1758668122034,3.98940022,4184.4,4184.3,1.1659]
[1758668122338,3.4231,4184.4,4184.3,1.1659]
[1758668122547,0.2153,4184.4,4184.3,1.1659]
[1758668123744,0.86429,4184.4,4184.3,1.1659]
[1758668123940,0.4343,4184.4,4184.1,3.5318]
[1758668124145,0.85573,4184.0,4183.9,0.75404]
[1758668124447,0.7492,4183.8,4183.7,0.96826]
[1758668124742,0.7492,4183.8,4183.7,1.17816]
[1758668125144,0.4257,4183.8,4183.7,1.17816]
[1758668126343,0.7492,4183.8,4183.7,1.17816]
[1758668126644,1.17925,4183.8,4183.7,1.17816]
[1758668127044,0.7492,4183.8,4183.7,1.17816]
[1758668127244,0.2067,4183.8,4183.7,1.17816]
[1758668127439,0.63672,4184.1,4184.0,0.98173]
[1758668127744,0.85572,4184.1,4184.0,1.30573]
[1758668128242,1.17922,4184.1,4184.0,0.324]
[1758668128647,0.7492,4184.1,4184.0,0.96823]
[1758668128945,0.7492,4184.1,4184.0,1.30573]
[1758668129144,1.17922,4184.1,4184.0,1.30573]
[1758668129534,1.17922,4184.1,4184.0,0.43003]
[1758668129739,1.17922,4184.1,4184.0,0.75403]
[1758668129939,1.17922,4184.1,4184.0,0.96823]
[1758668130841,0.7492,4184.1,4184.0,0.96823]
[1758668131046,0.4257,4184.1,4184.0,1.30573]
[1758668131841,0.85572,4184.1,4184.0,1.30573]
[1758668132038,1.17922,4184.1,4184.0,1.30573]
[1758668132239,1.17922,4184.1,4184.0,0.8757]
[1758668132440,1.7456785,4184.1,4184.0,0.5382]
[1758668132638,1.7456785,4184.1,4184.0,0.75403]
[1758668133146,1.7456785,4184.1,4184.0,0.96823]
[1758668134348,1.3156585,4184.1,4184.0,0.96823]
[1758668134551,0.9921585,4184.1,4184.0,1.30573]
[1758668134745,0.5664585,4184.1,4184.0,1.30573]
[1758668135046,3.2078,4184.4,4184.3,0.43]
[1758668135247,4.222344,4184.4,4184.3,1.1781]
[1758668135550,4.764844,4184.4,4184.3,1.1781]
[1758668136145,4.441344,4184.4,4184.3,1.1781]
[1758668136954,5.194834,4184.4,4184.3,0.324]
[1758668137145,5.194834,4184.4,4184.3,0.9682]
[1758668138055,4.764844,4184.4,4184.3,0.9682]
[1758668138252,4.441344,4184.4,4184.3,1.1781]
[1758668138453,1.233544,4184.4,4184.3,1.1781]
[1758668139161,0.807844,4184.4,4184.3,1.1781]
[1758668140664,1.014544,4184.4,4184.3,1.1781]
[1758668140864,1.557044,4184.4,4184.3,1.1781]
[1758668142059,1.987034,4184.4,4184.3,0.7481]
[1758668142470,1.987034,4184.4,4184.3,1.1781]
[1758668142969,1.557044,4184.4,4184.3,1.1781]
[1758668145069,1.233544,4184.4,4184.3,1.1781]
[1758668145473,1.663534,4184.4,4184.3,1.1781]
[1758668145674,1.987034,4184.4,4184.3,1.1781]
[1758668146670,1.987034,4184.4,4184.3,0.7481]
[1758668146974,0.2067,4183.7,4183.6,4.06197]
[1758668147486,0.2067,4183.7,4183.6,4.38597]
[1758668149978,1.17923,4184.0,4183.9,1.17814]
[1758668150278,1.74704106,4184.0,4183.9,1.17814]
[1758668151276,1.74704106,4184.0,4183.9,0.7481]
[1758668151576,1.74704106,4184.0,4183.9,0.324]
[1758668152179,1.74704106,4184.0,4183.9,0.5382]
[1758668152776,0.43006,4183.7,4183.6,3.5318]
[1758668153080,1.74707106,4183.7,4183.6,3.5318]
[1758668153672,1.74707106,4183.7,4183.6,3.96187]
[1758668153875,1.74707106,4183.7,4183.6,3.5318]
[1758668154068,1.74707106,4183.7,4183.3,0.3207]
[1758668154069,0.83439,4183.4,4183.3,0.3207]
[1758668154268,1.96070106,4183.4,4183.3,0.3207]
[1758668154474,1.96070106,4183.4,4183.3,0.5266]
[1758668154978,1.96070106,4183.4,4183.3,0.9567]
[1758668155179,1.53061106,4183.4,4183.3,1.1696]
[1758668155382,1.21311106,4183.4,4183.3,1.1696]
[1758668157081,0.6453,4183.4,4183.3,1.1696]
[1758668157783,1.21222698,4183.4,4183.3,1.1696]
[1758668158275,0.6453,4183.4,4183.3,1.1696]
[1758668159584,1.39289,4183.4,4183.3,0.7395]
[1758668159881,0.7218,4183.8,4183.7,0.84886]
[1758668160078,1.52957774,4183.8,4183.7,1.16956]
[1758668160777,1.95962774,4183.8,4183.7,0.3207]
[1758668160976,1.95964539,4183.8,4183.7,0.3207]
[1758668161378,1.52959539,4183.8,4183.7,0.75076]
[1758668161881,1.95964539,4183.8,4183.7,0.3207]
[1758668164283,1.71864539,4183.8,4183.7,0.3207]
[1758668164476,1.12529539,4183.8,4183.1,3.2078]
[1758668164686,0.4043,4184.1,4184.0,0.97222]
[1758668164983,1.21191177,4184.1,4184.0,0.97222]
[1758668165282,1.21191177,4184.1,4184.0,1.29292]
[1758668165483,0.97091177,4184.1,4184.0,1.29292]
[1758668165684,1.21191177,4184.1,4184.0,1.29292]
[1758668165885,0.56661177,4184.1,4184.0,1.29292]
[1758668166080,3.2078,4184.8,4184.7,0.42996]
[1758668166283,4.73728339,4184.8,4184.7,1.16946]
[1758668166878,4.41978339,4184.8,4184.7,1.16946]
[1758668167077,4.73728339,4184.8,4184.7,0.7395]
[1758668167579,4.73728339,4184.8,4184.7,1.16946]
[1758668167989,4.49628339,4184.8,4184.7,1.16946]
[1758668168188,4.73728339,4184.8,4184.7,1.16946]
[1758668168384,4.17878339,4184.8,4184.7,1.16946]
[1758668168585,0.80768339,4184.8,4184.7,1.16946]
[1758668168776,1.01078339,4184.8,4184.7,1.16946]
[1758668170186,1.52948339,4184.8,4184.7,1.16946]
[1758668170683,0.4043,4184.3,4184.2,3.9473]
[1758668171384,0.7218,4184.3,4184.2,4.37731]
[1758668171782,0.7218,4184.7,4184.6,0.63587]
[1758668171986,1.28851764,4184.7,4184.6,1.16947]
[1758668172688,0.97101764,4184.7,4184.6,1.16947]
[1758668173182,0.56671764,4184.7,4184.6,1.16947]
[1758668173485,0.56671764,4184.7,4184.5,0.1234]
[1758668173486,0.241,4184.8,4184.7,0.83856]
[1758668173684,0.241,4184.8,4184.7,1.17166]
[1758668173685,0.80748105,4184.8,4184.7,1.17166]
[1758668176583,3.4182,4185.3,4185.2,1.17161]
[1758668176782,3.98406427,4185.3,4185.2,1.17161]
[1758668178494,3.4182,4185.3,4185.2,1.17161]
[1758668178793,3.6398,4185.3,4185.2,1.17161]
[1758668178999,3.9564,4185.3,4185.2,1.17161]
[1758668179294,4.52202058,4185.3,4185.2,1.17161]
[1758668179496,3.9564,4185.3,4185.2,1.17161]
[1758668179891,4.52198039,4185.3,4185.2,1.17161]
[1758668183900,4.95188039,4185.3,4185.2,1.17161]
[1758668184700,4.52198039,4185.3,4185.2,1.17161]
[1758668185001,4.95188039,4185.3,4185.2,1.17161]
[1758668185202,4.52198039,4185.3,4185.2,1.17161]
[1758668185904,4.95188039,4185.3,4185.2,1.17161]
[1758668187304,4.95188039,4185.3,4185.2,0.3331]
[1758668187803,4.95188039,4185.3,4185.2,0.96741]
[1758668188602,4.95188039,4185.3,4185.2,0.5375]
[1758668188805,4.95188039,4185.3,4185.2,0.96741]
[1758668189505,1.74408039,4185.3,4185.2,0.96741]
[1758668190408,0.56558039,4185.3,4185.2,1.16991]
[1758668190593,3.4148,4185.5,4185.4,0.94509]
[1758668190799,3.4148,4185.5,4185.4,1.14759]
[1758668190800,0.207,4185.5,4185.4,1.14759]
[1758668191299,0.42986,4185.7,4185.2,3.2078]
[1758668191300,0.83975,4185.8,4185.7,0.83676]
[1758668191503,1.95852207,4185.8,4185.7,1.14756]
[1758668192204,1.95852207,4185.8,4185.7,0.7177]
[1758668195507,1.95852207,4185.8,4185.2,3.2078]
[1758668195508,1.15199,4185.4,4185.3,0.2044]
[1758668195709,1.28767207,4185.4,4185.3,0.6343]
[1758668196005,1.28767207,4185.4,4185.3,0.9451]
[1758668196210,1.28842976,4185.4,4185.3,0.9451]
[1758668198703,1.71831976,4185.4,4185.3,0.9451]
[1758668201210,1.28842976,4185.4,4185.3,0.9451]
[1758668201416,1.71831976,4185.4,4185.3,1.1476]